[Event "45th FIDE Olympiad 2024"]
[Site "Budapest"]
[Date "2024.09.12"]
[Round "2.17"]
[White "Fawzy, Adham"]
[Black "Abdusattorov, Nodirbek"]
[Result "0-1"]
[ECO "C50"]
[WhiteElo "2507"]
[BlackElo "2766"]
[Annotator "TA"]
[PlyCount "72"]
[EventDate "2024.09.05"]
[EventType "team-tourn"]
[EventCountry "HUN"]
[SourceTitle "playchess.com"]
[Source "ChessBase"]
[SourceQuality "1"]
[WhiteTeam "Egypt"]
[BlackTeam "Uzbekistan"]
[WhiteTeamCountry "EGY"]
[BlackTeamCountry "UZB"]
[TimeControl "40/5400+30:1800+30"]

{[%evp 14,72,29,42,32,34,37,39,49,0,0,0,0,-88,-13,-16,3,4,0,-25,-18,-11,-16,-14,-28,-21,-26,-31,-31,-25,-31,-26,-16,-32,-24,-37,-33,-40,-62,-99,-99,-95,-87,-247,-240,-252,-213,-230,-242,-371,-330,-610,-593,-659,-645,-643,-662,-644,-648,-1500,-1460]} 1. e4 {[%emt 0:00:07]} e5 {[%emt 0:00:19]} 2. Nf3 {[%emt 0:00:48]} Nc6 {[%emt 0:00:09]} 3. Bc4 {[%emt 0:00:19]} d6 {[%emt 0:00:17]} 4. d4 {[%emt 0:00:54]} exd4 {[%emt 0:00:40]} 5. Nxd4 {[%emt 0:00:28]} Nf6 {[%emt 0:00:05]} 6. Nc3 {[%emt 0:01:02]} Be7 {[%emt 0:00:07]} 7. O-O {[%emt 0:01:05]} O-O {[%emt 0:00:05]} 8. Bf4 {[%emt 0:02:56]} Ne5 {[%emt 0:02:29]} 9. Bb3 {[%emt 0:04:57]} c6 {[%emt 0:00:54]} 10. Re1 {[%emt 0:03:24]} Re8 {[%emt 0:02:53] White is slightly better.} 11. Nf5 {[%emt 0:08:21]} (11. Bg3 $14 {should be considered.}) 11... Bf8 {[%emt 0:02:16]} 12. Ne3 {[%emt 0:09:17]} b5 {[%emt 0:01:46]} 13. Bxe5 {[%emt 0:06:54]} (13. a3 $1 $11 {keeps the balance.}) 13... dxe5 {[%emt 0:12:55]} (13... Rxe5 $17 14. a3 Bd7 (14... Nxe4 15. Nxe4 Rxe4 16. Bxf7+ Kh8 17. Bh5 $15)) 14. Qf3 $11 {[%emt 0:02:24]} g6 {[%emt 0:06:55]} 15. a4 {[%emt 0:06:49]} b4 $1 {[%emt 0:00:52]} 16. Na2 {[%emt 0:01:54]} Bc5 {[%emt 0:02:15]} 17. Nc1 {[%emt 0:07:12]} a5 {[%emt 0:02:05]} 18. Nd3 {[%emt 0:00:44]} Bd4 {[%emt 0:00:12]} 19. h3 {[%emt 0:08:35]} Kg7 {[%emt 0:00:56]} 20. Red1 {[%emt 0:02:38][%cal Oc2c3]} Qc7 {[%emt 0:03:35]} 21. c3 {[%emt 0:03:48]} bxc3 {[%emt 0:00:38]} 22. bxc3 {[%emt 0:00:09]} Ba7 {[%emt 0:01:15]} 23. Bc4 {[%emt 0:03:01]} h5 {[%emt 0:04:44]} 24. Rab1 {[%emt 0:02:01]} Qe7 {[%emt 0:02:58]} 25. Re1 {[%emt 0:02:33]} Nh7 {[%emt 0:02:08] ...Ng5 would now be deadly.} 26. Qe2 {[%emt 0:03:43]} Qh4 $1 {[%emt 0:02:30]} 27. Nf1 {[%emt 0:03:28]} Ng5 {[%emt 0:04:40]} 28. Nh2 {[%emt 0:04:13] [#] Prevents Bg4. Loses the game.} (28. Kh1 $17) 28... f5 $1 $19 {[%emt 0:01:16][%cal Rf5e4,Bf7f5,Bf5f4][%mdl 32]} 29. Nf3 {[%emt 0:02:51]} Nxf3+ {[%emt 0:00:11]} 30. Qxf3 {[%emt 0:00:12][%cal Oe4f5] [#]} f4 {[%emt 0:00:02]} 31. Qd1 {[%emt 0:01:08]} (31. Rb2 {was necessary.} g5 (31... Qg3 32. Qxg3 fxg3 33. Kh1 $11) 32. Nxe5 Rxe5 33. Rd1) 31... Rf8 {[%emt 0:05:30][%cal Of4f3]} 32. Nxe5 {[%emt 0:02:12]} (32. Qc1) 32... Bxf2+ {[%emt 0:01:24] Black is clearly winning.} 33. Kh1 {[%emt 0:02:36]} Rd8 {[%emt 0:04:01] Prevents Qd6. White must now prevent ...Bxh3.} 34. Qe2 {[%emt 0:00:36]} Bxh3 {[%emt 0:01:15][%csl Gd8][%cal Rh3d7] This pair of bishops is nice.} 35. Nf3 {[%emt 0:00:34]} Qg3 {[%emt 0:00:10]} 36. gxh3 {[%emt 0:00:51][%cal Oc4e6] [#]} Rd2 $3 {[%emt 0:00:04][%mdl 512] Weighted Error Value: White=0.68/Black=0.04 (flawless) .  Mistake:       	White=5     	Black=1      Inaccurate:     	White=1     	---        OK:         	White=8     	Black=13     Best:        	White=1     	Black=1      Strong:       	---       	Black=3} 0-1

[Event "45th FIDE Olympiad 2024"]
[Site "Budapest"]
[Date "2024.09.12"]
[Round "2.17"]
[White "Rodriguez Santiago, Jaime"]
[Black "Kamara, Ansumana"]
[Result "1-0"]
[ECO "E92"]
[WhiteElo "2002"]
[BlackElo "1876"]
[Annotator "NA"]
[PlyCount "105"]
[EventDate "2024.09.05"]
[EventType "team-tourn"]
[EventCountry "HUN"]
[SourceTitle "playchess.com"]
[Source "ChessBase"]
[SourceQuality "1"]
[WhiteTeam "Puerto Rico"]
[BlackTeam "Sierra Leone"]
[WhiteTeamCountry "PUR"]
[BlackTeamCountry "SIE"]
[TimeControl "40/5400+30:1800+30"]

1. d4 Nf6 2. c4 g6 3. Nc3 Bg7 4. e4 d6 5. Nf3 O-O 6. Be2 Nc6 7. Be3 e5 8. d5 Ne7 9. Nd2 Nd7 10. Qc2 a6 11. b4 b6 12. Nb3 f5 13. f3 f4 14. Bf2 a5 15. bxa5 bxa5 16. a4 c5 17. dxc6 Nxc6 18. Rd1 Qg5 19. Kf1 Nd4 20. Nxd4 exd4 21. Bxd4 Ne5 22. Nb5 Rd8 23. Bb6 Rd7 24. Nxd6 Ba6 25. c5 Qe7 26. Qd2 Nf7 27. Qd5 Bb7 28. Qb3 Ba6 29. Bxa6 Rxa6 30. Nxf7 Rxd1+ 31. Qxd1 Qxf7 32. Qd5 Kf8 33. Qxf7+ Kxf7 34. Ke2 Ra8 35. Rd1 Bf8 36. Rd5 Rc8 37. Kd3 Kf6 38. Kc4 Be7 39. Bxa5 g5 40. Bb6 h5 41. a5 Ke6 42. a6 Bf6 43. a7 Ra8 44. Kb5 g4 45. Kc6 Rh8 46. Ba5 h4 47. Rd6+ Ke7 48. Rxf6 h3 49. gxh3 g3 50. hxg3 fxg3 51. Rg6 Rc8+ 52. Kb7 Rxc5 53. a8=Q 1-0

[Event "45th FIDE Olympiad 2024"]
[Site "Budapest"]
[Date "2024.09.12"]
[Round "2.18"]
[White "Yakubboev, Nodirbek"]
[Black "Wageih, Kareim"]
[Result "1-0"]
[ECO "B15"]
[WhiteElo "2666"]
[BlackElo "2402"]
[Annotator "TA"]
[PlyCount "61"]
[EventDate "2024.09.05"]
[EventType "team-tourn"]
[EventCountry "HUN"]
[SourceTitle "playchess.com"]
[Source "ChessBase"]
[SourceQuality "1"]
[WhiteTeam "Uzbekistan"]
[BlackTeam "Egypt"]
[WhiteTeamCountry "UZB"]
[BlackTeamCountry "EGY"]
[TimeControl "40/5400+30:1800+30"]

{[%evp 19,61,21,30,30,48,44,62,57,60,69,75,1,0,11,2,18,29,27,31,33,41,-41,-8,-8,30,0,5,0,0,0,0,0,5,0,13,0,88,15,362,331,401,327,508,516]} 1. e4 {[%emt 0:00:10]} c6 {[%emt 0:00:28]} 2. d4 {[%emt 0:00:09]} d5 {[%emt 0:00:07]} 3. Nd2 {[%emt 0:00:07]} dxe4 {[%emt 0:00:29]} 4. Nxe4 {[%emt 0:00:08]} Nf6 {[%emt 0:03:04]} 5. Nxf6+ {[%emt 0:00:09]} exf6 {[%emt 0:00:01]} 6. c3 {[%emt 0:00:08]} Bd6 {[%emt 0:00:21]} 7. Bd3 {[%emt 0:00:11]} O-O {[%emt 0:01:22]} 8. Ne2 {[%emt 0:00:08]} Qc7 {[%emt 0:01:06]} 9. Qc2 {[%emt 0:12:25]} h6 {[%emt 0:05:27]} 10. Be3 {[%emt 0:09:26]} Re8 {[%emt 0:15:28][%cal Ob8d7]} 11. h3 {[%emt 0:06:14]} Be6 {[%emt 0:08:57]} 12. O-O {[%emt 0:03:13]} Nd7 {[%emt 0:00:01]} 13. c4 {[%emt 0:04:23] White is slightly better.} Rad8 {[%emt 0:04:19]} 14. Rad1 {[%emt 0:19:52][%cal Od4d5] aiming for d5!} Nf8 {[%emt 0:14:52] [#]} 15. d5 {[%emt 0:03:52]} cxd5 $11 {[%emt 0:02:16]} 16. c5 {[%emt 0:00:16]} Be7 {[%emt 0:08:53]} 17. b4 {[%emt 0:01:09]} Nd7 {[%emt 0:07:29]} 18. Bb5 {[%emt 0:05:16]} a6 {[%emt 0:02:58]} 19. Bf4 {[%emt 0:04:43]} Qc8 {[%emt 0:00:01]} 20. Bxd7 {[%emt 0:07:59]} (20. Ba4 $14) 20... Rxd7 {[%emt 0:08:24]} 21. Nd4 {[%emt 0:00:16]} Bd8 {[%emt 0:00:03]} 22. Rfe1 {[%emt 0:04:54]} Bc7 $132 {[%emt 0:00:40][%mdl 2048] Black puts up resistance} 23. Bxc7 {[%emt 0:01:33]} Qxc7 {[%emt 0:01:05]} 24. a4 {[%emt 0:01:49]} Rde7 {[%emt 0:01:54]} 25. b5 {[%emt 0:01:29]} axb5 {[%emt 0:02:21]} 26. axb5 {[%emt 0:00:10]} Bc8 {[%emt 0:04:30]} 27. Rxe7 {[%emt 0:00:07]} Rxe7 {[%emt 0:01:05]} (27... Qxe7 $11 {remains equal.} 28. Qc3 Kh7) 28. c6 {[%emt 0:02:39]} (28. b6 $16 Qd8 29. Nb5) 28... Qf4 {[%emt 0:01:29][%mdl 8192] [#]} (28... bxc6 $11 {and Black stays safe.} 29. Qxc6 (29. Nxc6 Re6 $14) (29. bxc6 Qa5 $11) 29... Kh7) 29. Qc5 $1 $18 {[%emt 0:01:12][%csl LRd5,LRe7]} Qe4 {[%emt 0:03:30]} 30. c7 {[%emt 0:02:32]} Re5 {[%emt 0:02:05]} (30... Kh7 $142 31. b6 Kg8) 31. Nf3 {[%emt 0:01:35] Weighted Error Value: White=0.21 (precise) /Black=0.54.  Loses game:     	---       	Black=1      Mistake:       	White=3     	Black=2      Inaccurate:     	---       	Black=2      OK:         	White=8     	Black=5      Best:        	White=2     	Black=1} ({Weaker is} 31. b6 Rg5 32. g3 Bxh3 33. c8=Q+ (33. c8=B $2 Qg2#) 33... Bxc8 34. Qxc8+ Kh7 $18) 1-0

[Event "45th FIDE Olympiad 2024"]
[Site "Budapest"]
[Date "2024.09.12"]
[Round "2.18"]
[White "Winston Gerald, Mansfield Thomas"]
[Black "Zilleruelo Irizarry, Diego"]
[Result "1/2-1/2"]
[ECO "D30"]
[WhiteElo "1950"]
[BlackElo "2041"]
[Annotator "NA"]
[PlyCount "99"]
[EventDate "2024.09.05"]
[EventType "team-tourn"]
[EventCountry "HUN"]
[SourceTitle "playchess.com"]
[Source "ChessBase"]
[SourceQuality "1"]
[WhiteTeam "Sierra Leone"]
[BlackTeam "Puerto Rico"]
[WhiteTeamCountry "SIE"]
[BlackTeamCountry "PUR"]
[TimeControl "40/5400+30:1800+30"]

1. d4 d5 2. c4 e6 3. Nf3 a6 4. e3 Nf6 5. a3 dxc4 6. Bxc4 b5 7. Bd3 c5 8. dxc5 Bxc5 9. b4 Bb6 10. O-O Bb7 11. Be2 Nbd7 12. Bb2 Qe7 13. Nbd2 O-O 14. Nb3 Rfd8 15. Qe1 Bd5 16. Nbd2 Rac8 17. Rc1 Ne4 18. Nxe4 Bxe4 19. Nd2 Bc2 20. Nf3 Nf6 21. Nd4 Be4 22. h3 Qd6 23. Nf3 Nd5 24. Be5 Qe7 25. Qd2 Nc3 26. Bd4 Bxd4 27. exd4 Nxe2+ 28. Qxe2 Rxc1 29. Rxc1 Qb7 30. Qe3 Bxf3 31. gxf3 h6 32. Qf4 Qd5 33. Rc7 Rd7 34. Rxd7 Qxd7 35. Qb8+ Kh7 36. Qb6 Qc8 37. Kg2 Kg6 38. d5 Qc1 39. h4 Qc4 40. d6 Qxh4 41. Qc7 Qg5+ 42. Kf1 Qf4 43. Qc2+ Kf6 44. Qc7 Qxf3 45. d7 Qd1+ 46. Kg2 Qg4+ 47. Kf1 Qd1+ 48. Kg2 Qg4+ 49. Kf1 Qd1+ 50. Kg2 1/2-1/2

[Event "45th FIDE Olympiad 2024"]
[Site "Budapest"]
[Date "2024.09.12"]
[Round "2.19"]
[White "Wafa, Hamed"]
[Black "Sindarov, Javokhir"]
[Result "1/2-1/2"]
[ECO "B99"]
[WhiteElo "2368"]
[BlackElo "2677"]
[Annotator "TA"]
[PlyCount "95"]
[EventDate "2024.09.05"]
[EventType "team-tourn"]
[EventCountry "HUN"]
[SourceTitle "playchess.com"]
[Source "ChessBase"]
[SourceQuality "1"]
[WhiteTeam "Egypt"]
[BlackTeam "Uzbekistan"]
[WhiteTeamCountry "EGY"]
[BlackTeamCountry "UZB"]
[TimeControl "40/5400+30:1800+30"]

{[%evp 23,95,48,33,16,66,62,66,66,70,83,92,102,185,206,206,197,182,158,183,183,383,386,355,89,96,98,86,81,70,104,82,76,63,70,82,15,17,26,24,25,44,46,48,37,36,36,36,36,38,18,18,18,18,18,19,23,48,48,48,48,48,48,48,48,48,48,48,48,48,0,48,0,48,48]} 1. e4 {[%emt 0:00:03]} c5 {[%emt 0:00:18]} 2. Nf3 {[%emt 0:00:13]} d6 {[%emt 0:00:09]} 3. d4 {[%emt 0:00:06]} cxd4 {[%emt 0:00:07]} 4. Nxd4 {[%emt 0:00:03]} Nf6 {[%emt 0:00:08]} 5. Nc3 {[%emt 0:00:08]} a6 {[%emt 0:00:06]} 6. Bg5 {[%emt 0:01:55]} e6 {[%emt 0:00:40]} 7. Qf3 {[%emt 0:00:46]} Nbd7 {[%emt 0:05:49]} 8. O-O-O {[%emt 0:00:12]} Qc7 {[%emt 0:06:35]} 9. Qg3 {[%emt 0:00:15]} Be7 {[%emt 0:06:26]} 10. f4 {[%emt 0:08:58]} h6 {[%emt 0:33:37]} 11. Bh4 {[%emt 0:05:43]} g5 {[%emt 0:06:35]} 12. fxg5 {[%emt 0:01:16]} Rg8 {[%emt 0:01:29]} 13. Be2 {[%emt 0:20:36][%cal Od4e6] Nxe6! is the strong threat.} hxg5 {[%emt 0:02:56]} (13... Qc5 $1 $11 14. Nb3 Qc6) 14. Bxg5 $14 {[%emt 0:00:53]} b5 {[%emt 0:00:06] And now ...b4 would win.} 15. a3 {[%emt 0:12:19]} Ne5 {[%emt 0:05:54]} 16. h4 {[%emt 0:03:01][%cal Bh2h4,Bh4g5,Bg5g6][%mdl 32] Threatens to win with Qf4.} Nh7 {[%emt 0:02:36]} 17. Nf3 {[%emt 0:10:13] White is more active.} Nxg5 {[%emt 0:05:57] [#]} (17... Bd7 $16 {was worth a try.}) 18. Nxe5 $1 $18 {[%emt 0:02:18]} ({Don't take} 18. Nxg5 $6 Qc5 $14) (18. hxg5 Ng6 19. e5 dxe5 $16) 18... dxe5 {[%emt 0:02:52]} 19. hxg5 {[%emt 0:00:31]} Bd7 {[%emt 0:04:54][%cal Oe8c8] [#]} 20. g6 $1 {[%emt 0:04:18][%mdl 512]} O-O-O {[%emt 0:05:14]} (20... Rxg6 21. Rh8+) 21. g7 {[%emt 0:00:25]} Bc6 $2 {[%emt 0:04:06]} (21... Kb7 22. Rdf1 Bc6) 22. Rxd8+ {[%emt 0:05:46]} Qxd8 {[%emt 0:00:03]} 23. Qxe5 {[%emt 0:00:32]} (23. a4 $18) 23... Bd6 $16 {[%emt 0:01:55]} 24. Qh5 {[%emt 0:00:09]} Rxg7 {[%emt 0:00:03]} 25. Rd1 {[%emt 0:00:31]} Bf4+ {[%emt 0:00:49]} 26. Kb1 {[%emt 0:00:11]} Qg5 {[%emt 0:00:04]} 27. Qh8+ {[%emt 0:03:18]} Rg8 {[%emt 0:00:38]} 28. Qd4 {[%emt 0:00:29] Qb6 would now be deadly.} Rd8 {[%emt 0:01:23]} 29. Qxd8+ {[%emt 0:02:46]} (29. Qb6 $16 Rxd1+ 30. Bxd1) 29... Qxd8 $11 {[%emt 0:00:04]} 30. Rxd8+ {[%emt 0:00:02]} Kxd8 $16 {[%emt 0:00:05][%mdl 4096] Endgame. KBB-KBN} 31. Bf3 {[%emt 0:00:40]} a5 {[%emt 0:02:14]} 32. Ne2 {[%emt 0:01:08]} Bd6 {[%emt 0:00:25]} 33. Nd4 {[%emt 0:00:18]} Bd7 {[%emt 0:00:18]} 34. c3 {[%emt 0:01:05]} b4 {[%emt 0:00:06]} 35. axb4 {[%emt 0:00:13]} axb4 {[%emt 0:00:08]} 36. Kc2 {[%emt 0:00:07]} bxc3 {[%emt 0:00:46]} 37. Kxc3 {[%emt 0:00:14]} Bg3 {[%emt 0:01:17]} 38. b4 {[%emt 0:00:38]} e5 {[%emt 0:00:21]} 39. Nf5 {[%emt 0:00:14]} Bxf5 {[%emt 0:00:23]} 40. exf5 $11 {[%emt 0:00:06] KB-KB} f6 {[%emt 0:00:19]} 41. Kc4 {[%emt 0:30:06]} Kc7 {[%emt 0:30:04]} 42. Kd5 {[%emt 0:00:16]} Kb6 {[%emt 0:00:32]} 43. Ke6 {[%emt 0:00:05]} Bh4 {[%emt 0:00:07]} 44. Be2 {[%emt 0:00:14]} Bg5 {[%emt 0:00:05]} 45. Kd5 {[%emt 0:00:06]} Bh4 {[%emt 0:00:05]} 46. Ke6 {[%emt 0:00:04]} Bg5 {[%emt 0:00:04]} 47. Kd5 {[%emt 0:00:05]} Bh4 $1 {[%emt 0:00:06]} 48. Ke4 {[%emt 0:00:05] White really could win this.   Weighted Error Value: White=0.16 (very precise) /Black=0.18 (very precise) .  Missed win:     	White=1     	---        Mistake:       	White=1     	Black=3      OK:         	White=14    	Black=14     Best:        	White=2     	Black=3      Strong:       	White=1     	Black=1} 1/2-1/2

[Event "45th FIDE Olympiad 2024"]
[Site "Budapest"]
[Date "2024.09.12"]
[Round "2.19"]
[White "Boggiano Pereira, Miguel A."]
[Black "Adeshole Beckley, Brian"]
[Result "1-0"]
[ECO "D30"]
[WhiteElo "2015"]
[BlackElo "1814"]
[Annotator "NA"]
[PlyCount "113"]
[EventDate "2024.09.05"]
[EventType "team-tourn"]
[EventCountry "HUN"]
[SourceTitle "playchess.com"]
[Source "ChessBase"]
[SourceQuality "1"]
[WhiteTeam "Puerto Rico"]
[BlackTeam "Sierra Leone"]
[WhiteTeamCountry "PUR"]
[BlackTeamCountry "SIE"]
[TimeControl "40/5400+30:1800+30"]

1. d4 e6 2. c4 d5 3. Nf3 c5 4. cxd5 exd5 5. g3 Nc6 6. Bg2 Nf6 7. O-O Be7 8. dxc5 Bxc5 9. a3 a5 10. Bg5 Be6 11. Nc3 Be7 12. Qa4 O-O 13. Rfd1 h6 14. Bxf6 Bxf6 15. e3 Bxc3 16. bxc3 Qf6 17. Rab1 Rab8 18. Qf4 Qxf4 19. gxf4 Bf5 20. Rb5 Be4 21. Nd2 Bxg2 22. Kxg2 Rfd8 23. Nf3 f6 24. Rbxd5 Rxd5 25. Rxd5 Rd8 26. Rb5 Rd3 27. Rxb7 Rxc3 28. Rc7 Rc2 29. Rc8+ Kf7 30. Rc7+ Kf8 31. Nh4 Nd4 32. Ra7 Nc6 33. Rc7 Nd4 34. Ra7 Nc6 35. Ra8+ Kf7 36. Nf5 Kg6 37. Nd6 Rd2 38. Ne4 Rd3 39. Ra6 Ne7 40. Rxa5 Nf5 41. Kf1 Rd1+ 42. Ke2 Rh1 43. Rxf5 Rxh2 44. Rd5 Rh1 45. Rd1 Rh5 46. a4 Ra5 47. Ra1 Kf5 48. Nd6+ Ke6 49. Nc4 Rc5 50. Kd3 Rd5+ 51. Kc3 h5 52. e4 Rd8 53. a5 h4 54. f5+ Kf7 55. a6 g5 56. a7 Ra8 57. Nb6 1-0

[Event "45th FIDE Olympiad 2024"]
[Site "Budapest"]
[Date "2024.09.12"]
[Round "2.20"]
[White "Vokhidov, Shamsiddin"]
[Black "Sadek, Sameh"]
[Result "1-0"]
[ECO "C60"]
[WhiteElo "2650"]
[BlackElo "2269"]
[Annotator "TA"]
[PlyCount "61"]
[EventDate "2024.09.05"]
[EventType "team-tourn"]
[EventCountry "HUN"]
[SourceTitle "playchess.com"]
[Source "ChessBase"]
[SourceQuality "1"]
[WhiteTeam "Uzbekistan"]
[BlackTeam "Egypt"]
[WhiteTeamCountry "UZB"]
[BlackTeamCountry "EGY"]
[TimeControl "40/5400+30:1800+30"]

{[%evp 26,61,23,28,53,55,57,64,125,111,100,78,82,0,102,81,147,140,129,111,133,104,352,262,267,182,172,173,887,883,29990,29991,29991,637,29992,29993,29995,29973]} 1. e4 {[%emt 0:00:13]} e5 {[%emt 0:00:13]} 2. Nf3 {[%emt 0:00:07]} Nc6 {[%emt 0:00:06]} 3. Bb5 {[%emt 0:00:32]} Nge7 {[%emt 0:00:53]} 4. O-O {[%emt 0:03:58]} g6 {[%emt 0:00:47]} 5. c3 {[%emt 0:00:38]} Bg7 {[%emt 0:06:49]} 6. d4 {[%emt 0:01:19]} exd4 {[%emt 0:00:07]} 7. cxd4 {[%emt 0:00:04]} d5 {[%emt 0:00:01]} 8. exd5 {[%emt 0:01:47]} Nxd5 {[%emt 0:00:03]} 9. Re1+ {[%emt 0:09:12]} Be6 {[%emt 0:00:08]} 10. Bg5 {[%emt 0:00:01]} Qd6 {[%emt 0:00:43]} 11. Nbd2 {[%emt 0:00:04][%cal Bb1d2,Bd2e4,Be4c5][%mdl 32]} O-O {[%emt 0:00:51]} 12. Ne4 {[%emt 0:01:22]} Qb4 {[%emt 0:03:35]} 13. Bxc6 {[%emt 0:00:03]} bxc6 {[%emt 0:00:08]} 14. Qc1 {[%emt 0:00:04]} Rab8 {[%emt 0:27:52]} 15. b3 {[%emt 0:02:38][%cal Oe4c5]} Qb6 {[%emt 0:23:44][%cal Oe6g4]} 16. Nc5 {[%emt 0:02:18]} Rfe8 {[%emt 0:03:44]} (16... Bf5 $14) 17. Ne5 $16 {[%emt 0:05:26] [#] aiming for Nc4.} Ra8 {[%emt 0:05:38]} 18. Nc4 {[%emt 0:02:22]} Qb8 {[%emt 0:03:50]} 19. Ne5 {[%emt 0:04:31] A dynamic duo of knights.} Qb6 {[%emt 0:00:16]} 20. h3 $36 {[%emt 0:01:09][%mdl 2048] White has strong initiative.} a5 {[%emt 0:01:00]} ({Black should try} 20... Bf5) 21. Bh6 {[%emt 0:08:33]} Bh8 {[%emt 0:01:19]} 22. Bd2 {[%emt 0:01:17] White is much more active.} Nb4 {[%emt 0:06:31]} 23. Qc3 {[%emt 0:02:21]} Bd5 $2 {[%emt 0:09:41] This costs Black the game.} (23... Rad8 $16 {was called for.} 24. a3 Na6) 24. Ncd7 {[%emt 0:02:25]} Qb5 {[%emt 0:02:28]} 25. Ng4 {[%emt 0:12:31]} Rxe1+ {[%emt 0:00:46]} 26. Rxe1 {[%emt 0:00:05] Intending Nh6+ and mate.} Bg7 {[%emt 0:00:41]} (26... Qd3) 27. Bh6 $18 {[%emt 0:06:12]} Qd3 {[%emt 0:00:38]} 28. Ndf6+ {[%emt 0:01:25]} Bxf6 {[%emt 0:01:22]} 29. Nxf6+ {[%emt 0:00:04]} Kh8 {[%emt 0:00:01] Black is weak on the dark squares} 30. Qc5 {[%emt 0:00:14]} Be6 {[%emt 0:01:02] [#]} 31. Rxe6 $1 {[%emt 0:00:44][%mdl 512] Weighted Error Value: White=0.25 (precise) /Black=0.57.  Loses game:     	---       	Black=1      Mistake:       	---       	Black=3      Inaccurate:     	White=1     	Black=1      OK:         	White=2     	Black=2      Best:        	White=2     	Black=2} 1-0

[Event "45th FIDE Olympiad 2024"]
[Site "Budapest"]
[Date "2024.09.12"]
[Round "2.20"]
[White "Moses, Ina Ebenezer Conteh"]
[Black "Mejias Nunez, Rafael E."]
[Result "0-1"]
[ECO "C91"]
[WhiteElo "1631"]
[BlackElo "2026"]
[Annotator "NA RC"]
[PlyCount "58"]
[EventDate "2024.09.05"]
[EventType "team-tourn"]
[EventCountry "HUN"]
[SourceTitle "playchess.com"]
[Source "ChessBase"]
[SourceQuality "1"]
[WhiteTeam "Sierra Leone"]
[BlackTeam "Puerto Rico"]
[WhiteTeamCountry "SIE"]
[BlackTeamCountry "PUR"]
[TimeControl "40/5400+30:1800+30"]

1. e4 e5 2. Nf3 Nc6 3. Bb5 a6 4. Ba4 Nf6 5. O-O Be7 6. Re1 b5 7. Bb3 d6 8. c3 O-O 9. d4 Bg4 10. d5 Nb8 11. Bg5 Nbd7 12. Nbd2 Nc5 13. Bc2 Nxd5 14. exd5 Bxg5 15. b4 Bxd2 16. Qxd2 Bxf3 17. bxc5 Bh5 18. c6 f5 19. Re3 Qg5 20. f3 f4 21. Ree1 Bxf3 22. Bxh7+ Kxh7 23. Qd3+ e4 24. Qd2 Rae8 25. g3 e3 26. Qc2+ Be4 27. Qc1 fxg3 28. h3 Qf5 29. Re2 Qxh3 0-1